fUST/lending_fUST_20250615
["ID","MTS","AMOUNT","RATE_DAILY","PERIOD"]
[365809212,1749929438388,-460.0,0.00022191,4]
[365809213,1749929438397,-460.0,0.00022191,4]
[365809214,1749929438408,-164.29249986,0.00022191,4]
[365809215,1749929438417,-460.0,0.00022191,4]
[365809216,1749929438427,-500.0,0.00022191,4]
[365809217,1749929438437,-460.0,0.00022191,4]
[365809218,1749929438446,-460.0,0.00022191,4]
[365809219,1749929438456,-2171.28,0.00022191,4]
[365809220,1749929438466,-734.1,0.00022191,4]
[365809221,1749929438476,-3408.05,0.00022191,4]
[365809222,1749929438485,-2900.69,0.00022191,4]
[365809223,1749929438495,-460.0,0.00022191,4]
[365809224,1749929438504,-1895.77,0.00022191,4]
[365809225,1749929438513,-460.0,0.00022191,4]
[365809226,1749929438523,-460.0,0.00022191,4]
[365809227,1749929438532,-1472.11,0.00022191,4]
[365809228,1749929438542,-571.02,0.00022191,4]
[365809229,1749929438551,-430.0,0.00022191,4]
[365809230,1749929438561,-460.0,0.00022191,4]
[365809231,1749929438571,-460.0,0.00022191,4]
[365809232,1749929438580,-460.0,0.00022191,4]
[365809233,1749929438590,-430.0,0.00022191,4]
[365809234,1749929438600,-1089.27,0.00022191,4]
[365809235,1749929438610,-438.86606368,0.00022191,4]
[365809236,1749929438620,-440.0,0.00022191,4]
[365809237,1749929438630,-460.0,0.00022191,4]
[365809238,1749929438640,-460.0,0.00022191,4]
[365809239,1749929438649,-460.0,0.00022191,4]
[365809240,1749929438658,-306.25,0.00022208,10]
[365809241,1749929438668,-698.5808693,0.0002221,6]
[365809242,1749929438677,-702.0,0.00022218,4]
[365809243,1749929438687,-151.0,0.00022218,4]
[365809244,1749929438697,-500.83773021,0.00022218,4]
[365809245,1749929438707,-500.0,0.00022218,4]
[365809246,1749929438716,-151.0,0.00022218,4]
[365809247,1749929438726,-500.0,0.00022218,4]
[365809248,1749929438735,-500.0,0.00022218,4]
[365809249,1749929438746,-861.19,0.00022244,6]
[365809250,1749929438757,-702.0,0.00022246,4]
[365809251,1749929438767,-151.0,0.00022246,4]
[365809252,1749929438777,-500.0,0.00022246,4]
[365809253,1749929438787,-198.0,0.00022246,4]
[365809254,1749929438797,-500.0,0.00022246,4]
[365809255,1749929438806,-500.0,0.00022246,4]
[365809256,1749929438826,-500.0,0.0002225,2]
[365809257,1749929438836,-702.0,0.00022273,4]
[365809258,1749929438846,-3271.99686508,0.00022278,2]
[365809259,1749929438856,-702.0,0.00022301,4]
[365809260,1749929438865,-698.5808693,0.00022314,7]
[365809261,1749929438875,-160.0,0.00022319,2]
[365809262,1749929438885,-160.0,0.00022319,2]
[365809263,1749929438895,-845.10789306,0.00022319,2]
[365809264,1749929438905,-213.28201367,0.00022319,2]
[365809265,1749929438914,-160.0,0.00022319,2]
[365809266,1749929438924,-160.0,0.00022319,2]
[365809267,1749929438934,-160.0,0.00022319,2]
[365809268,1749929438943,-835.41710878,0.00022319,2]
[365809269,1749929438953,-702.0,0.00022328,4]
[365809270,1749929438963,-861.19,0.00022344,4]
[365809271,1749929438972,-702.0,0.00022355,4]
[365809272,1749929438982,-5000.0,0.00022378,2]
[365809273,1749929438991,-1000.0,0.00022378,2]
[365809274,1749929439000,-500.0,0.00022378,2]
[365809275,1749929439009,-500.0,0.00022378,2]
[365809276,1749929439018,-500.0,0.00022378,2]
[365809277,1749929439028,-2938.92270128,0.00022378,2]
[365809278,1749929439037,-500.0,0.00022378,2]
[365809279,1749929439048,-500.0,0.00022378,2]
[365809280,1749929439058,-500.0,0.00022378,2]
[365809281,1749929439067,-500.0,0.00022378,2]
[365809282,1749929439077,-500.0,0.00022378,2]
[365809283,1749929439086,-500.0,0.00022378,2]
[365809284,1749929439095,-500.0,0.00022378,2]
[365809285,1749929439104,-500.0,0.00022378,2]
[365809286,1749929439113,-500.0,0.00022378,2]
[365809287,1749929439123,-500.0,0.00022378,2]
[365809288,1749929439133,-207.4,0.00022378,2]
[365809289,1749929439142,-500.0,0.00022378,2]
[365809290,1749929439151,-500.0,0.00022378,2]
[365809291,1749929439161,-500.0,0.00022378,2]
[365809292,1749929439171,-702.0,0.00022383,4]
[365809293,1749929439180,-172.466671,0.00022389,2]
[365809294,1749929439190,-70415.04,0.000224,7]
[365809295,1749929439200,-160.0,0.000224,7]
[365809296,1749929439362,-213.28201367,0.000224,7]
[365809297,1749929439376,-845.10789306,0.000224,7]
[365809298,1749929439390,-702.0,0.0002241,4]
[365809299,1749929439401,-698.5808693,0.00022417,7]
[365809300,1749929439412,-702.0,0.00022438,4]
[365809301,1749929439422,-861.19,0.00022444,4]
[365809302,1749929439431,-702.0,0.00022465,4]
[365809303,1749929439440,-380.0,0.00022465,4]
[365809304,1749929439450,-290.0,0.00022465,4]
[365809305,1749929439461,-460.0,0.00022465,4]
[365809306,1749929439471,-460.0,0.00022465,4]
[365809307,1749929439480,-460.0,0.00022465,4]
[365809308,1749929439489,-603.59544499,0.00022465,4]
[365809309,1749929439499,-460.0,0.00022465,4]
[365809310,1749929439509,-479.32423968,0.00022465,4]
[365809311,1749929439519,-1955.85,0.00022465,4]
[365809312,1749929439530,-460.0,0.00022465,4]
[365809313,1749929439540,-500.0,0.00022465,4]
[365809314,1749929439549,-260.0,0.00022465,4]
[365809315,1749929439559,-460.0,0.00022465,4]
[365809316,1749929439569,-460.0,0.00022465,4]
[365809317,1749929439579,-430.0,0.00022465,4]
[365809318,1749929439590,-460.0,0.00022465,4]
[365809319,1749929439600,-460.0,0.00022465,4]
[365809320,1749929439611,-460.0,0.00022465,4]
[365809321,1749929439621,-460.0,0.00022465,4]
[365809322,1749929439630,-202.33200696,0.00022465,4]
[365809323,1749929439639,-410.0,0.00022465,4]
[365809324,1749929439650,-460.0,0.00022465,4]
[365809325,1749929439659,-460.0,0.00022465,4]
[365809326,1749929439668,-460.0,0.00022465,4]
[365809327,1749929439677,-485.72,0.00022465,4]
[365809328,1749929439686,-460.0,0.00022465,4]
[365809329,1749929439695,-460.0,0.00022465,4]
[365809330,1749929439704,-460.0,0.00022465,4]
[365809331,1749929439714,-926.84,0.00022465,4]
[365809332,1749929439723,-1092.78,0.00022465,4]
[365809333,1749929439732,-500.0,0.00022465,4]
[365809334,1749929439742,-460.0,0.00022465,4]
[365809335,1749929439751,-460.0,0.00022465,4]
[365809336,1749929439760,-460.0,0.00022465,4]
[365809337,1749929439769,-460.0,0.00022465,4]
[365809338,1749929439778,-460.0,0.00022465,4]
[365809339,1749929439787,-460.0,0.00022465,4]
[365809340,1749929439796,-410.0,0.00022465,4]
[365809341,1749929439806,-460.0,0.00022465,4]
[365809342,1749929439815,-3201.11,0.00022465,4]
[365809343,1749929439824,-1422.57,0.00022465,4]
[365809344,1749929439833,-460.0,0.00022465,4]
[365809345,1749929439844,-1250.85,0.00022465,4]
[365809346,1749929439855,-1354.17,0.00022465,4]
[365809347,1749929439864,-460.0,0.00022465,4]
[365809348,1749929439873,-460.0,0.00022465,4]
[365809349,1749929439883,-876.67,0.00022465,4]
[365809350,1749929439892,-460.0,0.00022465,4]
[365809351,1749929439902,-3624.02,0.00022465,4]
[365809352,1749929439911,-460.0,0.00022465,4]
[365809353,1749929439920,-513.71564651,0.00022465,4]
[365809354,1749929439929,-787.16,0.00022465,4]
[365809356,1749929439938,-460.0,0.00022465,4]
[365809358,1749929439948,-661.89,0.00022465,4]
[365809359,1749929439957,-460.0,0.00022465,4]
[365809360,1749929439967,-310.0,0.00022465,4]
[365809361,1749929439976,-1547.32,0.00022465,4]
[365809362,1749929439986,-1731.53,0.00022465,4]
[365809363,1749929439995,-460.0,0.00022465,4]
[365809364,1749929440005,-2829.9,0.00022465,4]
[365809365,1749929440014,-578.52,0.00022465,4]
[365809366,1749929440023,-460.0,0.00022465,4]
[365809367,1749929440032,-460.0,0.00022465,4]
[365809368,1749929440042,-460.0,0.00022465,4]
[365809369,1749929440052,-3458.78,0.00022465,4]
[365809370,1749929440063,-460.0,0.00022465,4]
[365809371,1749929440073,-671.37,0.00022465,2]
[365809372,1749929440084,-460.0,0.00022465,4]
[365809373,1749929440094,-1874.99,0.00022465,4]
[365809374,1749929440105,-538.88946386,0.00022465,4]
[365809375,1749929440115,-460.0,0.00022465,4]
[365809376,1749929440124,-3519.21,0.00022465,4]
[365809377,1749929440134,-460.0,0.00022465,4]
[365809378,1749929440144,-3262.99,0.00022465,4]
[365809379,1749929440154,-574.38209525,0.00022465,4]
[365809380,1749929440164,-460.0,0.00022465,4]
[365809381,1749929440174,-460.0,0.00022465,4]
[365809382,1749929440183,-460.0,0.00022465,4]
[365809383,1749929440193,-663.07,0.00022465,4]
[365809384,1749929440203,-460.0,0.00022465,4]
[365809385,1749929440213,-1753.52,0.00022465,4]
[365809386,1749929440223,-1322.51,0.00022465,4]
[365809387,1749929440232,-460.0,0.00022465,4]
[365809388,1749929440241,-664.6,0.00022465,4]
[365809389,1749929440251,-460.0,0.00022465,4]
[365809390,1749929440260,-430.0,0.00022465,4]
[365809391,1749929440269,-460.0,0.00022465,4]
[365809392,1749929440279,-586.28342129,0.00022465,4]
[365809393,1749929440287,-460.0,0.00022465,4]
[365809394,1749929440297,-2171.28,0.00022465,4]
[365809395,1749929440307,-734.1,0.00022465,4]
[365809396,1749929440316,-3408.05,0.00022465,4]
[365809397,1749929440326,-2900.69,0.00022465,4]
[365809398,1749929440335,-430.0,0.00022465,4]
[365809399,1749929440344,-1895.77,0.00022465,4]
[365809400,1749929440354,-460.0,0.00022465,4]
[365809401,1749929440367,-1472.11,0.00022465,4]
[365809402,1749929440377,-571.02,0.00022465,4]
[365809403,1749929440387,-580.0,0.00022465,4]
[365809404,1749929440397,-400.0,0.00022465,4]
[365809405,1749929440407,-460.0,0.00022465,4]
[365809406,1749929440417,-1089.27,0.00022465,4]
[365809407,1749929440426,-460.0,0.00022465,4]
[365809408,1749929440436,-448.07493434,0.00022466,2]
[365809409,1749929440447,-890.55411048,0.00022488,2]
[365809410,1749929440457,-702.0,0.00022492,4]
[365809411,1749929440467,-2230.11,0.000225,7]
[365809412,1749929440477,-702.0,0.0002252,4]
[365809413,1749929440487,-698.5808693,0.00022521,7]
[365809414,1749929440496,-168.0,0.00022525,2]
[365809415,1749929440507,-420.0,0.00022531,2]
[365809416,1749929440517,-420.0,0.00022531,2]
[365809417,1749929440527,-861.19,0.00022544,6]
[365809418,1749929440537,-702.0,0.00022547,4]
[365809419,1749929440547,-702.0,0.00022575,4]
[365809420,1749929440557,-168.0,0.00022578,2]
[365809421,1749929440567,-702.0,0.00022602,4]
[365809422,1749929440576,-153.0,0.00022607,2]
[365809423,1749929440586,-153.0,0.00022608,2]
[365809424,1749929440596,-153.0,0.00022608,2]
[365809425,1749929440606,-153.0,0.00022608,2]
[365809426,1749929440616,-153.0,0.00022608,2]
[365809427,1749929440626,-153.0,0.00022608,2]
[365809428,1749929440635,-153.0,0.00022608,2]
[365809429,1749929440645,-153.0,0.00022608,2]
[365809430,1749929440655,-153.0,0.00022608,2]
[365809431,1749929440664,-153.0,0.00022608,2]
[365809432,1749929440673,-153.0,0.00022608,2]
[365809433,1749929440683,-153.0,0.00022608,2]
[365809434,1749929440692,-153.0,0.00022608,2]
[365809435,1749929440702,-153.0,0.00022608,2]
[365809436,1749929440711,-153.0,0.00022608,2]
[365809437,1749929440722,-153.0,0.00022608,2]
[365809438,1749929440731,-153.0,0.00022608,2]
[365809439,1749929440741,-153.0,0.00022608,2]
[365809440,1749929440751,-153.0,0.00022608,2]
[365809441,1749929440760,-153.0,0.00022608,2]
[365809442,1749929440770,-153.0,0.00022608,2]
[365809443,1749929440780,-153.0,0.00022608,2]
[365809444,1749929440789,-153.0,0.00022608,2]
[365809445,1749929440799,-153.0,0.00022608,2]
[365809446,1749929440808,-153.0,0.00022608,2]
[365809447,1749929440817,-153.0,0.00022608,2]
[365809448,1749929440826,-153.0,0.00022608,2]
[365809449,1749929440836,-153.0,0.00022608,2]
[365809450,1749929440845,-153.0,0.00022608,2]
[365809451,1749929440855,-153.0,0.00022608,2]
[365809452,1749929440864,-153.0,0.00022608,2]
[365809453,1749929440874,-153.0,0.00022608,2]
[365809454,1749929440883,-153.0,0.00022608,2]
[365809455,1749929440893,-153.0,0.00022608,2]
[365809456,1749929440902,-153.0,0.00022608,2]
[365809457,1749929440912,-153.0,0.00022608,2]
[365809458,1749929440922,-153.0,0.00022608,2]
[365809459,1749929440931,-153.0,0.00022608,2]
[365809460,1749929440940,-153.0,0.00022608,2]
[365809461,1749929440950,-153.0,0.00022608,2]
[365809462,1749929440959,-153.0,0.00022608,2]
[365809463,1749929440969,-153.0,0.00022608,2]
[365809464,1749929440979,-153.0,0.00022608,2]
[365809465,1749929440988,-153.0,0.00022608,2]
[365809466,1749929440998,-153.0,0.00022608,2]
[365809467,1749929441008,-153.0,0.00022608,2]
[365809468,1749929441018,-153.0,0.00022608,2]
[365809469,1749929441027,-153.0,0.00022608,2]
[365809470,1749929441037,-153.0,0.00022608,2]
[365809471,1749929441047,-153.0,0.00022608,2]
[365809472,1749929441056,-153.0,0.00022608,2]
[365809473,1749929441066,-153.0,0.00022608,2]
[365809474,1749929441076,-153.0,0.00022608,2]
[365809475,1749929441086,-153.0,0.00022608,2]
[365809476,1749929441096,-153.0,0.00022608,2]
[365809477,1749929441106,-153.0,0.00022608,2]
[365809478,1749929441116,-153.0,0.00022608,2]
[365809479,1749929441126,-153.0,0.00022608,2]
[365809480,1749929441135,-153.0,0.00022608,2]
[365809481,1749929441146,-698.5808693,0.00022624,7]
[365809482,1749929441156,-702.0,0.00022629,4]
[365809483,1749929441165,-160.0,0.00022629,2]
[365809484,1749929441174,-229.82479369,0.00022629,2]
[365809485,1749929441185,-160.0,0.00022629,2]
[365809486,1749929441195,-424.40141186,0.00022629,2]
[365809487,1749929441204,-12533.30537164,0.00022629,2]
[365809488,1749929441214,-861.19,0.00022644,2]
[365809489,1749929441224,-702.0,0.00022657,4]
[365809490,1749929441233,-151.0,0.00022684,4]
[365809491,1749929441243,-702.0,0.00022684,4]
[365809492,1749929441253,-6000.00144797,0.000227,2]
[365809493,1749929441262,-151.0,0.00022711,4]
[365809494,1749929441272,-702.0,0.00022712,4]
[365809495,1749929441281,-1000.0,0.00022721,2]
[365809496,1749929441291,-698.5808693,0.00022728,7]
[365809497,1749929441300,-151.0,0.00022739,4]
[365809498,1749929441310,-702.0,0.00022739,4]
[365809499,1749929441319,-460.0,0.00022739,4]
[365809500,1749929441328,-460.0,0.00022739,4]
[365809501,1749929441338,-460.0,0.00022739,4]
[365809502,1749929441347,-460.0,0.00022739,4]
[365809503,1749929441357,-1955.85,0.00022739,4]
[365809504,1749929441371,-460.0,0.00022739,4]
[365809505,1749929441382,-500.0,0.00022739,4]
[365809506,1749929441392,-180.0,0.00022739,4]
[365809507,1749929441401,-460.0,0.00022739,4]
[365809508,1749929441411,-460.0,0.00022739,4]
[365809509,1749929441421,-460.0,0.00022739,4]
[365809510,1749929441430,-460.0,0.00022739,4]
[365809511,1749929441441,-460.0,0.00022739,4]
[365809512,1749929441450,-460.0,0.00022739,4]
[365809513,1749929441460,-460.0,0.00022739,4]
[365809514,1749929441469,-460.0,0.00022739,4]
[365809515,1749929441479,-485.72,0.00022739,4]
[365809516,1749929441489,-460.0,0.00022739,4]
[365809517,1749929441499,-460.0,0.00022739,4]
[365809518,1749929441509,-460.0,0.00022739,4]
[365809519,1749929441518,-926.84,0.00022739,4]
[365809520,1749929441529,-1092.78,0.00022739,4]
[365809521,1749929441538,-501.00000054,0.00022739,4]
[365809522,1749929441548,-460.0,0.00022739,4]
[365809523,1749929441558,-460.0,0.00022739,4]
[365809524,1749929441569,-606.27922572,0.00022739,4]
[365809525,1749929441579,-460.0,0.00022739,4]
[365809526,1749929441588,-460.0,0.00022739,4]
[365809527,1749929441598,-290.0,0.00022739,4]
[365809528,1749929441607,-460.0,0.00022739,4]
[365809529,1749929441617,-3201.11,0.00022739,4]
[365809530,1749929441626,-1422.57,0.00022739,4]
[365809531,1749929441636,-460.0,0.00022739,4]
[365809532,1749929441646,-1250.85,0.00022739,4]
[365809533,1749929441656,-1354.17,0.00022739,4]
[365809534,1749929441665,-460.0,0.00022739,4]
[365809535,1749929441676,-876.67,0.00022739,4]
[365809536,1749929441686,-540.0,0.00022739,4]
[365809537,1749929441695,-3624.02,0.00022739,4]
[365809538,1749929441705,-460.0,0.00022739,4]
[365809539,1749929441714,-787.16,0.00022739,4]
[365809540,1749929441725,-460.0,0.00022739,4]
[365809541,1749929441734,-661.89,0.00022739,4]
[365809542,1749929441743,-460.0,0.00022739,4]
[365809543,1749929441754,-1547.32,0.00022739,4]
[365809544,1749929441764,-1731.53,0.00022739,4]
[365809545,1749929441774,-460.0,0.00022739,4]
[365809546,1749929441784,-2829.9,0.00022739,4]
[365809547,1749929441793,-578.52,0.00022739,4]
[365809548,1749929441804,-460.0,0.00022739,4]
[365809549,1749929441816,-460.0,0.00022739,4]
[365809550,1749929441826,-3458.78,0.00022739,4]
[365809551,1749929441836,-460.0,0.00022739,4]
[365809552,1749929441846,-671.37,0.00022739,2]
[365809553,1749929441856,-460.0,0.00022739,4]
[365809554,1749929441865,-1874.99,0.00022739,4]
[365809555,1749929441874,-460.0,0.00022739,4]
[365809556,1749929441884,-3519.21,0.00022739,4]
[365809557,1749929441894,-460.0,0.00022739,4]
[365809558,1749929441903,-3262.99,0.00022739,4]
[365809559,1749929441912,-460.0,0.00022739,4]
[365809560,1749929441923,-440.0,0.00022739,4]
[365809561,1749929441933,-460.0,0.00022739,4]
[365809562,1749929441943,-663.07,0.00022739,4]
[365809563,1749929441953,-440.0,0.00022739,4]
[365809564,1749929441963,-1753.52,0.00022739,4]
[365809565,1749929441974,-1322.51,0.00022739,4]
[365809566,1749929441983,-460.0,0.00022739,4]
[365809567,1749929441994,-664.6,0.00022739,4]
[365809568,1749929442003,-440.0,0.00022739,4]
[365809569,1749929442012,-460.0,0.00022739,4]
[365809570,1749929442022,-460.0,0.00022739,4]
[365809571,1749929442031,-2171.28,0.00022739,4]
[365809572,1749929442041,-734.1,0.00022739,4]
[365809573,1749929442050,-3408.05,0.00022739,4]
[365809574,1749929442060,-2900.69,0.00022739,4]
[365809575,1749929442069,-1895.77,0.00022739,4]
[365809576,1749929442079,-460.0,0.00022739,4]
[365809577,1749929442089,-1472.11,0.00022739,4]
[365809578,1749929442099,-571.02,0.00022739,4]
[365809579,1749929442109,-575.13639792,0.00022739,4]
[365809580,1749929442118,-1089.27,0.00022739,4]
[365809581,1749929442129,-460.0,0.00022739,4]
[365809582,1749929442140,-861.19,0.00022744,6]
[365809583,1749929442153,-151.0,0.00022766,4]
[365809584,1749929442169,-702.0,0.00022766,4]
[365809585,1749929442178,-500.0,0.0002278,2]
[365809586,1749929442187,-500.0,0.0002278,2]
[365809587,1749929442197,-500.0,0.0002278,2]
[365809588,1749929442206,-500.0,0.0002278,2]
[365809589,1749929442215,-151.0,0.00022794,4]
[365809590,1749929442227,-702.0,0.00022794,4]
[365809591,1749929442237,-168.0,0.00022811,2]
[365809592,1749929442246,-243.70160215,0.00022821,4]
[365809593,1749929442256,-711.60461338,0.00022821,4]
[365809594,1749929442266,-698.5808693,0.00022831,8]
[365809595,1749929442275,-861.19,0.00022844,7]
[365809596,1749929442285,-890.55411048,0.00022886,2]
[365809597,1749929442295,-2672.44,0.00022892,2]
[365809599,1749929442420,-5000.0,0.00022926,2]
[365809600,1749929442431,-698.5808693,0.00022934,8]
[365809601,1749929442442,-861.19,0.00022944,4]
[365809602,1749929442452,-25395.97503115,0.00022998,2]
[365809603,1749929442462,-151.0,0.00022998,7]
[365809604,1749929442474,-151.0,0.00022998,7]
[365809605,1749929442485,-211.725309,0.00022998,7]
[365809606,1749929442495,-5963.37362922,0.00023,2]
[365809607,1749929442504,-826.81317095,0.00023,2]
[365809608,1749929442514,-6020.85196694,0.00023,3]
[365809609,1749929442524,-15651.68263261,0.00023,2]
[365809610,1749929442534,-40681.90762674,0.00023,20]
[365809611,1749929442544,-460.0,0.00023013,4]
[365809612,1749929442554,-460.0,0.00023013,4]
[365809613,1749929442563,-460.0,0.00023013,4]
[365809614,1749929442573,-460.0,0.00023013,4]
[365809615,1749929442583,-1955.85,0.00023013,4]
[365809616,1749929442592,-460.0,0.00023013,4]
[365809618,1749929442602,-500.0,0.00023013,4]
[365809619,1749929442611,-460.0,0.00023013,4]
[365809621,1749929442621,-460.0,0.00023013,4]
[365809623,1749929442631,-460.0,0.00023013,4]
[365809624,1749929442640,-460.0,0.00023013,4]
[365809625,1749929442650,-460.0,0.00023013,4]
[365809626,1749929442659,-460.0,0.00023013,4]
[365809627,1749929442669,-460.0,0.00023013,4]
[365809628,1749929442678,-200.0,0.00023013,4]
[365809629,1749929442688,-485.72,0.00023013,4]
[365809630,1749929442698,-460.0,0.00023013,4]
[365809632,1749929442707,-440.0,0.00023013,4]
[365809633,1749929442720,-460.0,0.00023013,4]
[365809634,1749929442730,-926.84,0.00023013,4]
[365809635,1749929442738,-1092.78,0.00023013,4]
[365809636,1749929442747,-460.0,0.00023013,4]
[365809637,1749929442758,-460.0,0.00023013,4]
[365809638,1749929442767,-390.0,0.00023013,4]
[365809639,1749929442777,-460.0,0.00023013,4]
[365809640,1749929442786,-460.0,0.00023013,4]
[365809641,1749929442796,-3201.11,0.00023013,4]
[365809642,1749929442805,-1422.57,0.00023013,4]
[365809643,1749929442814,-460.0,0.00023013,4]
[365809644,1749929442824,-1250.85,0.00023013,4]
[365809645,1749929442834,-1354.17,0.00023013,4]
[365809646,1749929442844,-420.0,0.00023013,4]
[365809647,1749929442853,-876.67,0.00023013,4]
[365809648,1749929442863,-3624.02,0.00023013,4]
[365809649,1749929442873,-460.0,0.00023013,4]
[365809650,1749929442884,-151.0,0.00023013,7]
[365809651,1749929442894,-787.16,0.00023013,4]
[365809652,1749929442903,-460.0,0.00023013,4]
[365809653,1749929442913,-661.89,0.00023013,4]
[365809654,1749929442922,-460.0,0.00023013,4]
[365809655,1749929442931,-151.0,0.00023013,7]
[365809656,1749929442941,-1547.32,0.00023013,4]
[365809657,1749929442950,-1731.53,0.00023013,4]
[365809658,1749929442959,-460.0,0.00023013,4]
[365809659,1749929442972,-151.0,0.00023013,7]
[365809660,1749929442981,-2829.9,0.00023013,4]
[365809661,1749929442991,-578.52,0.00023013,4]
[365809662,1749929443001,-410.0,0.00023013,4]
[365809663,1749929443010,-460.0,0.00023013,4]
[365809664,1749929443020,-3458.78,0.00023013,4]
[365809665,1749929443030,-460.0,0.00023013,4]
[365809666,1749929443041,-671.37,0.00023013,2]
[365809667,1749929443050,-460.0,0.00023013,4]
[365809668,1749929443061,-1874.99,0.00023013,4]
[365809669,1749929443071,-151.0,0.00023013,7]
[365809670,1749929443080,-460.0,0.00023013,4]
[365809671,1749929443090,-3519.21,0.00023013,4]
[365809672,1749929443100,-151.0,0.00023013,7]
[365809673,1749929443110,-151.0,0.00023013,7]
[365809674,1749929443119,-460.0,0.00023013,4]
[365809675,1749929443128,-3262.99,0.00023013,4]
[365809676,1749929443138,-460.0,0.00023013,4]
[365809677,1749929443147,-460.0,0.00023013,4]
[365809678,1749929443156,-663.07,0.00023013,4]
[365809679,1749929443165,-1753.52,0.00023013,4]
[365809680,1749929443174,-1322.51,0.00023013,4]
[365809681,1749929443183,-460.0,0.00023013,4]
[365809682,1749929443192,-664.6,0.00023013,4]
[365809683,1749929443201,-460.0,0.00023013,4]
[365809684,1749929443211,-460.0,0.00023013,4]
[365809686,1749929443223,-2171.28,0.00023013,4]
[365809688,1749929443232,-734.1,0.00023013,4]
[365809690,1749929443241,-3408.05,0.00023013,4]
[365809692,1749929443251,-2900.69,0.00023013,4]
[365809694,1749929443260,-1895.77,0.00023013,4]
[365809696,1749929443270,-460.0,0.00023013,4]
[365809698,1749929443280,-1472.11,0.00023013,4]
[365809699,1749929443289,-151.0,0.00023013,7]
[365809700,1749929443299,-571.02,0.00023013,4]
[365809701,1749929443309,-1089.27,0.00023013,4]
[365809702,1749929443318,-460.0,0.00023013,4]
[365809703,1749929443327,-500.0,0.00023021,2]
[365809704,1749929443337,-500.0,0.00023021,2]
[365809705,1749929443346,-698.5808693,0.00023038,8]
[365809706,1749929443355,-861.19,0.00023044,7]
[365809707,1749929443368,-558.52,0.000231,7]
[365809708,1749929443378,-698.5808693,0.00023141,8]
[365809709,1749929443387,-861.19,0.00023144,4]
[365809710,1749929443397,-24112.60626682,0.000232,7]
[365809711,1749929443407,-151.0,0.000232,7]
[365809712,1749929443416,-861.19,0.00023244,5]
[365809713,1749929443426,-698.5808693,0.00023245,8]
[365809714,1749929443435,-1500.0,0.00023268,2]
[365809715,1749929443446,-890.55411048,0.00023283,2]
[365809716,1749929443455,-298.461047,0.00023287,7]
[365809717,1749929443464,-151.0,0.00023287,7]
[365809718,1749929443476,-164.389164,0.00023287,7]
[365809719,1749929443485,-164.389164,0.00023287,7]
[365809720,1749929443495,-151.0,0.00023287,7]
[365809721,1749929443504,-460.0,0.00023287,4]
[365809722,1749929443514,-151.0,0.00023287,7]
[365809723,1749929443523,-460.0,0.00023287,4]
[365809724,1749929443533,-460.0,0.00023287,4]
[365809725,1749929443542,-151.0,0.00023287,7]